Workbook

Sheet Respuestas de formulario 1
A1: Marca temporal | B1: Pregunta sin título

Sheet Lan errenta eta adina
A1: Euskal AEko batez besteko pertsona-errenta (euroak) per sexua, errenta mota, adina eta aldia
A3: Bataz besteko errenta: | B3: 2015 | C3: Gizonezkoak | D3: Emakumezkoak | H3: TARTEA | I3: Gizonezkoak | J3: Emakumezkoak
A5: 18 - 19 urte | B5: 325 | C5: 392 | D5: 254 | G5: 18 - 19 | H5: =(I5)-(J5) -> 42.46153846 | I5: =((C5/B5)*100)-100 -> 20.61538462 | J5: =((D5/B5)*100)-100 -> -21.84615385
A6: 20 - 24 urte | B6: 3106 | C6: 3567 | D6: 2624 | G6: 20 - 24 | H6: 30.3605924 | I6: 14.84224082 | J6: -15.51835158
A7: 25 - 29 urte | B7: 10266 | C7: 11222 | D7: 9303 | G7: 25 - 29 | H7: 18.69277226 | I7: 9.312293006 | J7: -9.380479252
A8: 30 - 34 urte | B8: 14930 | C8: 16980 | D8: 12852 | G8: 30 - 34 | H8: 27.6490288 | I8: 13.73074347 | J8: -13.91828533
A9: 35 - 39 urte | B9: 17679 | C9: 20812 | D9: 14428 | G9: 35 - 39 | H9: 36.11063974 | I9: 17.72159059 | J9: -18.38904915
A10: 40 - 44 urte | B10: 19240 | C10: 22975 | D10: 15352 | G10: 40 - 44 | H10: 39.62058212 | I10: 19.41268191 | J10: -20.20790021
A11: 45 - 49 urte | B11: 19532 | C11: 23851 | D11: 15127 | G11: 45 - 49 | H11: 44.66516486 | I11: 22.11243088 | J11: -22.55273398
A12: 50 - 54 urte | B12: 20424 | C12: 25185 | D12: 15821 | G12: 50 - 54 | H12: 45.84802193 | I12: 23.31081081 | J12: -22.53721112
A13: 55 - 59 urte | B13: 19959 | C13: 25496 | D13: 14702 | G13: 55 - 59 | H13: 54.08086577 | I13: 27.74187084 | J13: -26.33899494
A14: 60 - 64 urte | B14: 11751 | C14: 15995 | D14: 7805 | G14: 60 - 64 | H14: 69.69619607 | I14: 36.11607523 | J14: -33.58012084
A23: Iturria:Eustat

Sheet Lan errenta eta nazionalitatea
A1: Euskal AEko batez besteko pertsona-errenta, nazionalitatearen arabera (euroak) per lurralde historikoa, sexua, nazioa eta aldia
B3: 2015 | C3: Gizonezkoak | D3: Emakumezkoak | G3: Tartea | H3: Gizonezkoak | I3: Emakumezkoak
A4: Guztira | B4: 19968 | C4: 25152 | D4: 15175 | F4: Guztira | G4: =(H4)-(I4) -> 49.96494391 | H4: =((C4/B4)*100)-100 -> 25.96153846 | I4: =((D4/B4)*100)-100 -> -24.00340545
A5: Espainiarra | B5: 20962 | C5: 26408 | D5: 15948 | F5: Espainiarra | G5: 49.89981872 | H5: 25.98034539 | I5: -23.91947333
A6: Europako gainerako tokietakoa | B6: 9402 | C6: 12708 | D6: 5824 | F6: Europako gainerako tokietakoa | G6: 73.21846416 | H6: 35.16273133 | I6: -38.05573282
A7: Ipar Amerikarra | B7: 8532 | C7: 11879 | D7: 6377 | F7: Ipar Amerikarra | G7: 64.48663854 | H7: 39.22878575 | I7: -25.25785279
A8: Ertamerikarra | B8: 2140 | C8: 3587 | D8: 1683 | F8: Ertamerikarra | G8: 88.97196262 | H8: 67.61682243 | I8: -21.35514019
A9: Hego Amerikarra | B9: 5074 | C9: 6899 | D9: 3950 | F9: Hego Amerikarra | G9: 58.11982657 | H9: 35.96767836 | I9: -22.15214821
A10: Asiarra | B10: 5468 | C10: 6228 | D10: 4226 | F10: Asiarra | G10: 36.61302121 | H10: 13.89904901 | I10: -22.7139722
A11: Afrikarra | B11: 5392 | C11: 6439 | D11: 3480 | F11: Afrikarra | G11: 54.87759644 | H11: 19.41765579 | I11: -35.45994065
A12: Ozeaniarra | B12: 7124 | C12: 8517 | D12: 5715 | F12: Ozeaniarra | G12: 39.33183605 | H12: 19.55362156 | I12: -19.77821449
A14: Iturria: Eustat
A20: Batazbesteko errenta kopurua eurotan
A21: Espainiarra | B21: 20962
A22: Europako gainerako tokietakoa | B22: 9402
A23: Ipar Amerikarra | B23: 8532
A24: Ertamerikarra | B24: 2140
A25: Hego Amerikarra | B25: 5074
A26: Asiarra | B26: 5468
A27: Afrikarra | B27: 5392
A28: Ozeaniarra | B28: 7124

Sheet Lan errenta eta ikasketa
A1: Euskal AEko batez besteko pertsona-errenta, prestakuntza mailaren arabera (euroak) per sexua, errenta mota, maila eta aldia
C3: Gizonezkoak | D3: Emakumezkoak | G3: TARTEA | H3: Gizonezkoak | I3: Emakumezkoak
A4: Guztira | C4: 15151 | D4: 8990
A6: Bataz besteko errenta: | B6: Guztira
A7: Ikasketarik gabeak | B7: 1248 | C7: 2287 | D7: 590 | F7: Ikasketarik gabeak | G7: =(H7)-(I7) -> 135.9775641 | H7: =((C7/B7)*100)-100 -> 83.25320513 | I7: =((D7/B7)*100)-100 -> -52.72435897
A8: Lehen mailako ikasketak | B8: 2232 | C8: 3800 | D8: 1159 | F8: 1.mailako ikasketak | G8: 118.3243728 | H8: 70.25089606 | I8: -48.0734767
A9: EGB eta lehen mailako heziketa | B9: 9037 | C9: 12653 | D9: 5227 | F9: EGB/1.mailako heziketa | G9: 82.1732876 | H9: 40.01327874 | I9: -42.16000885
A10: Lehen mailako bestelako ikasketak | B10: 4039 | C10: 5633 | D10: 2557 | F10: 1.mailako bestelako ikasketak | G10: 76.15746472 | H10: 39.46521416 | I10: -36.69225056
A11: Lanbide-heziketa | B11: 17242 | C11: 21320 | D11: 11576 | F11: Lanbide-heziketa | G11: 56.51316553 | H11: 23.65154854 | I11: -32.86161698
A12: Bestelako lanbide ikasketak | B12: 10797 | C12: 12331 | D12: 8469 | F12: Bestelako lanbide ikasketak | G12: 35.76919515 | H12: 14.20765027 | I12: -21.56154487
A13: Oinarrizko eta goi-mailako batxilergoa | B13: 7643 | C13: 10820 | D13: 4994 | F13: Oinarrizko+ goi-mailako batxilergoa | G13: 76.22661259 | H13: 41.56744734 | I13: -34.65916525
A14: BUP, COU, ESO, Batxilergoa | B14: 12393 | C14: 15662 | D14: 8764 | F14: BUP, COU, ESO, Batxilergoa | G14: 55.66045348 | H14: 26.37779392 | I14: -29.28265957
A15: Bigarren mailako bestelako ikasketak | B15: 15611 | C15: 19891 | D15: 10093 | F15: Bigarren mailako bestelako ikasketak | G15: 62.76343604 | H15: 27.41656524 | I15: -35.3468708
A16: Unibertsitate-eskolak | B16: 19507 | C16: 21758 | D16: 18760 | F16: Unibertsitate-eskolak | G16: 15.36884195 | H16: 11.53944738 | I16: -3.829394576
A17: Eskola teknikoak | B17: 22820 | C17: 24623 | D17: 16370 | F17: Eskola teknikoak | G17: 36.16564417 | H17: 7.900964067 | I17: -28.26468011
A18: Unibertsitate-fakultateak | B18: 21037 | C18: 25232 | D18: 18201 | F18: Unibertsitate-fakultateak | G18: 33.42206588 | H18: 19.94105623 | I18: -13.48100965
A19: Goi-mailako eskola teknikoak | B19: 23669 | C19: 25987 | D19: 17315 | F19: Goi-mailako eskola teknikoak | G19: 36.63864126 | H19: 9.793400651 | I19: -26.84524061
A20: Goi-mailako bestelako ikasketak | B20: 16301 | C20: 18135 | D20: 12098 | F20: Goi-mailako bestelako ikasketak | G20: 37.03453776 | H20: 11.25084351 | I20: -25.78369425
A21: Doktoregoak eta graduatuondokoak | B21: 23419 | C21: 26954 | D21: 20197 | F21: Doktoregoak eta graduatuondokoak | G21: 28.85264102 | H21: 15.09458132 | I21: -13.7580597
A24: Iturria: Eustat

Sheet Lan errenta eta kualifikazioa
B3: 2011 | C3: Gizonezkoak | D3: Emakumezkoak | G3: TARTEA | H3: Gizonezkoak | I3: Emakumezkoak
A4: Guztira | B4: 12358 | C4: 15994 | D4: 8959 | F4: Guztira | G4: =(H4)-(I4) -> 56.92668717 | H4: =((C4/B4)*100)-100 -> 29.42223661 | I4: =((D4/B4)*100)-100 -> -27.50445056
A5: Bataz besteko errenta kopurua eurotan:
A6: Goi mailako taldeak | B6: 31902 | C6: 37555 | D6: 27167 | F6: Goi mailako taldeak | G6: =(H6)-(I6) -> 32.5622218 | H6: =((C6/B6)*100)-100 -> 17.71989217 | I6: =((D6/B6)*100)-100 -> -14.84232963
A7: Bitarteko lanbideak eta enplegatuak | B7: 20416 | C7: 26774 | D7: 16085 | F7: Bitarteko lanbideak+enplegatuak | G7: 52.3559953 | H7: 31.14224138 | I7: -21.21375392
A8: Artisauak, nekazariak | B8: 9134 | C8: 10873 | D8: 6073 | F8: Artisauak, nekazariak | G8: 52.55090869 | H8: 19.0387563 | I8: -33.5121524
A9: Langile kualifikatuak | B9: 22523 | C9: 23100 | D9: 18317 | F9: Langile kualifikatuak | G9: 21.2360698 | H9: 2.561825689 | I9: -18.67424411
A10: Langile ez-kualifikatuak | B10: 13192 | C10: 16759 | D10: 9405 | F10: Langile ez-kualifikatuak | G10: 55.74590661 | H10: 27.03911461 | I10: -28.706792
A13: Iturria:Eustat

Sheet Lan errenta eta lanbidea
A1: Euskal AEko batez besteko pertsona-errenta, okupatutako biztanleriko egoera profesionalaren arabera (euroak) per sexua, errenta mota, lanbide egoera eta aldia
B3: 2011 | C3: Gizonezkoak | D3: Emakumezkoak | H3: TARTEA | I3: Gizonezkoak | J3: Emakumezkoak
A4: Bataz besteko errenta: | B4: 2011
A5: Enpresaburuak | B5: 17143 | C5: 20437 | D5: 10535 | G5: Enpresaburuak | H5: =(I5)-(J5) -> 57.76118532 | I5: =((C5/B5)*100)-100 -> 19.21483988 | J5: =((D5/B5)*100)-100 -> -38.54634545
A6: Autonomoak | B6: 9586 | C6: 10870 | D6: 7157 | G6: Autonomoak | H6: 38.73356979 | I6: 13.39453369 | J6: -25.33903609
A7: Kooperatibistak | B7: 26928 | C7: 31204 | D7: 20733 | G7: Kooperatibistak | H7: 38.88517528 | I7: 15.87938206 | J7: -23.00579323
A8: Soldatako langileak | B8: 28201 | C8: 32444 | D8: 23093 | G8: Soldatako langileak | H8: 33.15839864 | I8: 15.04556576 | J8: -18.11283288
A9: Aldi batekoak | B9: 16043 | C9: 18042 | D9: 14430 | G9: Aldi batekoak | H9: 22.5144923 | I9: 12.46026304 | J9: -10.05422926
A10: Famili laguntzaileak | B10: 7912 | C10: 10915 | D10: 6377 | G10: Famili laguntzaileak | H10: 57.35591507 | I10: 37.95500506 | J10: -19.40091001
A12: Iturria: Eustat

Sheet Lan errenta eta jarduera mota
A1: Euskal AEko batez besteko pertsona-errenta, okupatutako biztanleriko jarduera-adarraren arabera (euroak) per sexua, errenta mota, jarduera eremua eta aldia
B3: 2011 | C3: Gizonezkoak | D3: Emakumezkoak | H3: TARTEA | I3: Gizonezkoak | J3: Emakumezkoak
A4: Bataz besteko errenta: | B4: Guztira
A5: 1.sektorea | B5: 9189 | C5: 10949 | D5: 4073 | G5: Nekazaritza, abeltzaintza, basogintza eta arrantza | H5: =(I5)-(J5) -> 74.82859941 | I5: =((C5/B5)*100)-100 -> 19.15333551 | J5: =((D5/B5)*100)-100 -> -55.6752639
A6: Industria eta energia | B6: 29822 | C6: 31659 | D6: 22945 | G6: Industria eta energia | H6: 29.2200389 | I6: 6.159881966 | J6: -23.06015693
A7: Eraikuntza | B7: 19449 | C7: 19311 | D7: 20555 | G7: Eraikuntza | H7: =(J7)-(I7) -> 6.396215744 | I7: -0.7095480487 | J7: 5.686667695
A8: Merkataritza, ostalaritza, garraioa... | B8: 17203 | C8: 20994 | D8: 13223 | G8: Merkataritza, konponketa, ostalaritza, garraioa eta komunikabideak | H8: =(I8)-(J8) -> 45.17235366 | I8: 22.03685404 | J8: -23.13549962
A9: Finantzen jarduerak/enpresei zerbitzuak | B9: 23931 | C9: 29661 | D9: 18655 | G9: Finantzen eta higiezinen eremuko jarduerak eta enpresei emaniko zerbitzuak | H9: 45.99055618 | I9: 23.94383854 | J9: -22.04671765
A10: Bestelako zerbitzu-jarduerak | B10: 26041 | C10: 31974 | D10: 23192 | G10: Bestelako zerbitzu-jarduerak | H10: 33.72374333 | I10: 22.78330325 | J10: -10.94044008
A12: Iturria:Eustat
